bitfinex/quotes_SOLUSD_20240816
["timestamp","ask_amount","ask_price","bid_price","bid_amount"]
[1723833967738,22.4369,139.49,139.42,45.0]
[1723833969498,22.4369,139.49,139.37,7.1746]
[1723833969795,22.4369,139.49,139.39,7.1741]
[1723833970017,22.4369,139.49,139.4,1.43401283]
[1723833970225,22.4369,139.49,139.38,7.1744]
[1723833971745,22.4369,139.49,139.39,45.0]
[1723833972319,22.4369,139.49,139.34,17.941]
[1723833972508,22.4369,139.49,139.37,7.1751]
[1723833972712,22.4369,139.49,139.35,20.0]
[1723833973005,22.4369,139.49,139.38,17.936]
[1723833973340,22.4369,139.49,139.41,7.173]
[1723833973703,22.4369,139.49,139.42,45.0]
[1723833973932,22.4369,139.49,139.42,52.1725]
[1723833974729,22.4369,139.49,139.42,45.0]
[1723833975044,22.4369,139.49,139.41,45.0]
[1723833975202,22.4369,139.49,139.41,52.1729]
[1723833975406,22.4369,139.49,139.42,7.1725]
[1723833975624,22.4369,139.49,139.43,45.0]
[1723833976211,22.4369,139.49,139.43,53.60542349]
[1723833976408,22.4369,139.49,139.44,7.1713]
[1723833976723,22.4369,139.49,139.45,45.0]
[1723833977106,22.4369,139.49,139.46,1.43367754]
[1723833977421,22.4369,139.49,139.44,45.0]
[1723833977738,22.4369,139.49,139.42,7.1725]
[1723833977937,22.4369,139.49,139.41,25.1051]
[1723833978307,22.4369,139.49,139.38,17.9358]
[1723833978520,29.93860334,139.49,139.38,25.1103]
[1723833979316,29.93860334,139.49,139.38,17.9358]
[1723833979632,29.93860334,139.49,139.35,17.9402]
[1723833979839,29.93860334,139.49,139.37,7.1747]
[1723833980136,29.93860334,139.49,139.38,1.43393912]
[1723833980340,29.93860334,139.49,139.38,8.60853912]
[1723833980834,29.93860334,139.49,139.39,52.174]
[1723833981036,29.93860334,139.49,139.39,45.0]
[1723833981836,29.93860334,139.49,139.39,52.174]
[1723833982037,22.4369,139.49,139.4,1.43397335]
[1723833982237,29.93888691,139.49,139.39,45.0]
[1723833984330,22.4369,139.49,139.41,7.173]
[1723833984512,22.4369,139.49,139.42,53.60500472]
[1723833984707,22.4369,139.49,139.43,7.1717]
[1723833985011,22.4369,139.49,139.44,45.0]
[1723833985217,22.4369,139.49,139.42,52.1724]
[1723833985550,22.4369,139.49,139.41,25.1051]
[1723833985728,22.4369,139.49,139.42,45.0]
[1723833986532,22.4369,139.49,139.42,52.1724]
[1723833986834,22.4369,139.49,139.43,8.60572458]
[1723833987020,22.4369,139.49,139.44,45.0]
[1723833987221,22.4369,139.49,139.43,1.43372458]
[1723833987421,22.4369,139.49,139.42,52.1724]
[1723833990728,6.2863,139.49,139.43,8.60521326]
[1723833990917,6.2863,139.49,139.44,45.0]
[1723833991952,6.2863,139.49,139.43,45.0]
[1723833992830,7.1703,139.47,139.43,45.0]
[1723833993149,7.1703,139.47,139.43,52.172]
[1723833994945,16.7888964,139.52,139.43,46.37788535]
[1723833995151,7.1696,139.48,139.44,7.1715]
[1723833995357,7.1696,139.48,139.44,52.1715]
[1723833995536,7.1689,139.5,139.45,25.0977]
[1723833995853,16.7888964,139.52,139.46,0.54079387]
[1723833996059,16.7888964,139.52,139.42,17.9306]
[1723833996223,7.1703,139.47,139.42,17.9306]
[1723833996755,7.1705,139.46,139.42,25.103]
[1723833997069,7.1705,139.46,139.42,17.9306]
[1723833997271,16.7888964,139.52,139.39,39.5045]
[1723833997573,7.1717,139.44,139.4,7.1732]
[1723833997861,7.1711,139.45,139.4,7.1732]
[1723833998068,7.1711,139.45,139.41,7.1728]
[1723833998233,7.1706,139.46,139.42,0.92416711]
[1723833998439,7.1706,139.46,139.4,1.43380215]
[1723833998667,7.1706,139.46,139.42,7.1725]
[1723833998829,7.1701,139.47,139.43,52.1719]
[1723833999031,16.7888964,139.52,139.43,84.4999]
[1723833999246,7.1687,139.5,139.46,7.1705]
[1723833999430,7.1687,139.5,139.47,45.0]
[1723834000257,8.0228964,139.52,139.48,7.1694]
[1723834000437,8.0228964,139.52,139.49,46.43328869]
[1723834001151,8.0228964,139.52,139.49,45.0]
[1723834001345,8.0228964,139.52,139.48,45.0]
[1723834003075,0.8552964,139.52,139.44,17.9281]
[1723834003242,0.8552964,139.52,139.45,7.1709]
[1723834004062,0.8552964,139.52,139.48,7.1694]
[1723834004063,8.0228964,139.52,139.48,7.1694]
[1723834004464,8.0228964,139.52,139.49,45.0]
[1723834004671,0.8552964,139.52,139.49,52.1689]
[1723834004977,0.8552964,139.52,139.49,52.1688]
[1723834005980,0.8552964,139.52,139.47,1.43314432]
[1723834006157,7.171,139.45,139.41,7.173]
[1723834006357,7.1706,139.46,139.41,7.173]
[1723834007059,7.1711,139.45,139.41,7.173]
[1723834007456,7.1706,139.46,139.41,7.173]
[1723834007866,7.171,139.45,139.41,7.173]
[1723834008069,16.0779,139.49,139.39,17.9343]
[1723834008277,7.1715,139.44,139.39,17.9343]
[1723834008776,7.1715,139.44,139.39,19.3682435]
[1723834009081,7.1715,139.44,139.4,8.60745097]
[1723834009550,7.1715,139.44,139.4,7.1735]
[1723834009758,7.1715,139.44,139.41,45.0]
[1723834009960,7.1711,139.45,139.42,1.43343505]
[1723834010266,7.1711,139.45,139.41,52.173]
[1723834010267,16.0779,139.49,139.43,7.1716]
[1723834010446,7.17,139.47,139.44,45.0]
[1723834010866,7.17,139.47,139.42,7.1724]
[1723834010867,7.17,139.47,139.43,45.0]
[1723834011454,7.1696,139.48,139.44,7.1714]
[1723834011661,7.1691,139.49,139.45,45.0]
[1723834012192,7.1695,139.48,139.45,45.0]
[1723834012887,7.169,139.49,139.44,52.1713]
[1723834013086,6.0497,139.51,139.44,45.0]
[1723834013671,7.1701,139.47,139.44,45.0]
[1723834013984,7.1701,139.47,139.43,52.172]
[1723834014361,7.1695,139.48,139.44,7.1715]
[1723834014561,7.1695,139.48,139.45,45.0]
[1723834014760,6.0497,139.51,139.45,52.1708]
[1723834015162,7.1693,139.49,139.45,45.0]
[1723834015361,6.0497,139.51,139.45,45.0]
[1723834017671,6.0497,139.51,139.45,52.171]
[1723834018187,0.8552964,139.52,139.45,52.171]
[1723834018373,0.8552964,139.52,139.46,7.1704]
[1723834018576,0.8552964,139.52,139.47,52.1696]
[1723834018779,0.8552964,139.52,139.47,45.0]
[1723834019371,7.1682,139.51,139.48,1.01794959]
[1723834019778,7.1682,139.51,139.47,52.1699]
[1723834019976,8.0228964,139.52,139.48,1.1693576]
[1723834020210,8.0228964,139.52,139.48,7.1694]
[1723834020506,8.0228964,139.52,139.49,45.0]
[1723834020707,0.8552964,139.52,139.49,45.0]
[1723834021075,8.0227964,139.52,139.49,45.0]
[1723834021991,0.8552964,139.52,139.49,45.0]
[1723834023913,8.0226964,139.52,139.49,45.0]
[1723834024089,7.1695,139.48,139.45,17.9268]
[1723834024287,7.17,139.47,139.43,22.5994]
[1723834024811,7.17,139.47,139.43,15.4274]
[1723834025111,7.17,139.47,139.43,7.1719]
[1723834025477,7.1706,139.46,139.42,25.1036]
[1723834025982,15.194,139.46,139.39,276.4349]
[1723834026210,7.1741,139.39,139.33,15.6629]
[1723834026397,7.1729,139.42,139.37,7.1751]
[1723834026581,7.1725,139.42,139.38,7.1744]
[1723834026910,7.1725,139.42,139.37,25.1123]
[1723834027596,7.1721,139.43,139.38,7.1745]
[1723834028015,7.1726,139.42,139.38,7.1745]
[1723834028210,7.1721,139.43,139.39,45.0]
[1723834028898,3.61543371,139.49,139.39,62.9347]
[1723834029092,3.61543371,139.49,139.39,70.1087]
[1723834029093,7.1716,139.44,139.39,70.1087]
[1723834030187,7.1716,139.44,139.4,7.1734]
[1723834030381,33.1553,139.5,139.41,52.1729]
[1723834030586,33.1553,139.5,139.41,7.1729]
[1723834030784,33.1553,139.5,139.39,62.9347]
[1723834030785,7.1713,139.45,139.42,45.0]
[1723834032107,7.1706,139.46,139.42,45.0]
[1723834033522,7.1715,139.44,139.42,45.0]
[1723834033705,7.1715,139.44,139.41,45.0]
[1723834033888,17.9242,139.48,139.41,53.60642098]
[1723834034095,7.1706,139.46,139.41,52.173]
[1723834034509,15.2335,139.5,139.42,8.60613113]
[1723834034742,7.1706,139.46,139.43,45.0]
[1723834036709,7.17,139.47,139.43,52.1719]
[1723834036917,0.8552964,139.52,139.43,64.3618785]
[1723834037224,18.7741964,139.52,139.43,62.9298]
[1723834037735,7.1695,139.48,139.44,7.1711]
[1723834037945,7.1695,139.48,139.45,45.0]
[1723834038742,7.17,139.47,139.45,45.0]
[1723834038951,18.7741964,139.52,139.44,52.1715]
[1723834039238,7.1696,139.48,139.44,52.1714]
[1723834039739,7.1687,139.5,139.45,7.171]
[1723834039944,7.1687,139.5,139.46,45.0]
[1723834040248,7.169,139.49,139.46,45.0]
[1723834041648,7.1685,139.5,139.46,52.1704]
[1723834042021,0.8552964,139.52,139.47,17.9243]
[1723834042220,0.8552964,139.52,139.46,83.97795613]
[1723834042221,0.8552964,139.52,139.48,45.0]
[1723834042425,0.8552964,139.52,139.49,26.5236478]
[1723834042640,0.8552964,139.52,139.48,45.0]
[1723834042641,0.8552964,139.52,139.5,45.0]
[1723834042843,0.8552964,139.52,139.48,52.1693]
[1723834044028,8.0227964,139.52,139.48,52.1693]
[1723834044541,0.8552964,139.52,139.5,7.1683]
[1723834044732,0.8552964,139.52,139.51,52.1679]
[1723834045066,8.0227964,139.52,139.46,37.5446]
[1723834045348,0.8552964,139.52,139.46,15.9846]
[1723834045870,0.8552964,139.52,139.45,6.074]
[1723834046048,0.8552964,139.52,139.44,25.0989]
[1723834046223,7.169,139.49,139.44,25.0989]
[1723834047231,7.169,139.49,139.45,45.0]
[1723834047438,7.169,139.49,139.45,52.1708]
[1723834047643,7.1685,139.5,139.46,7.1704]
[1723834047953,7.168,139.51,139.47,45.0]
[1723834048451,0.8552964,139.52,139.47,45.0]
[1723834048622,7.169,139.49,139.47,45.0]
[1723834048822,7.169,139.49,139.46,45.0]
[1723834049533,7.1686,139.5,139.46,45.0]
[1723834051154,7.1686,139.5,139.46,52.1703]
[1723834051755,7.1679,139.51,139.47,7.1699]
[1723834051935,7.1679,139.51,139.48,45.0]
[1723834052949,8.0227964,139.52,139.48,52.1694]
[1723834053132,8.0227964,139.52,139.48,45.0]
[1723834053453,7.1681,139.51,139.48,45.0]
[1723834053658,7.1689,139.5,139.48,45.0]
[1723834053968,7.1689,139.5,139.41,55.8633]
[1723834053969,17.9242,139.48,139.4,293.0974]
[1723834054130,17.9242,139.48,139.4,16.6642]
[1723834054131,7.1721,139.43,139.4,16.6642]
[1723834054332,7.1721,139.43,139.38,13.4959]
[1723834055025,7.1721,139.43,139.39,7.174]
[1723834055454,17.9242,139.48,139.38,7.1745]
[1723834055455,7.1726,139.42,139.38,7.1745]
[1723834055658,7.1726,139.42,139.37,17.9369]
[1723834055659,7.1726,139.42,139.37,25.1119]
[1723834056359,7.1726,139.42,139.32,7.193]
[1723834056360,7.1747,139.38,139.33,7.1767]
[1723834056532,7.1742,139.39,139.34,7.1766]
[1723834056938,6.3871,139.41,139.33,17.9424]
[1723834057251,7.1755,139.37,139.33,17.9424]
[1723834057461,7.1755,139.37,139.33,25.1195]
[1723834057848,7.1755,139.37,139.33,17.9424]
[1723834058048,7.1756,139.36,139.33,17.9424]
[1723834058250,6.3871,139.41,139.33,17.9424]
[1723834058551,17.9242,139.56,139.35,17.9396]
[1723834058552,17.9281,139.45,139.35,17.9396]
[1723834058754,17.9242,139.48,139.37,20.0]
[1723834058952,7.1715,139.44,139.39,25.1086]
[1723834059162,7.1721,139.43,139.39,25.1086]
[1723834059451,7.1721,139.43,139.4,45.0]
[1723834060176,7.1727,139.42,139.4,45.0]
[1723834060342,7.1727,139.42,139.39,45.0]
[1723834060539,7.1727,139.42,139.38,45.0]
[1723834060744,7.1731,139.41,139.38,45.0]
[1723834060943,6.2595,139.5,139.31,104.90305813]
[1723834060944,7.1745,139.39,139.34,7.1763]
[1723834061252,7.1749,139.38,139.33,25.1191]
[1723834061436,7.1752,139.37,139.33,25.1191]
[1723834062745,7.1752,139.37,139.34,45.0]
[1723834063449,17.9319,139.42,139.34,52.1766]
[1723834063657,7.1745,139.39,139.34,52.1766]
[1723834064674,7.1745,139.39,139.35,7.176]
[1723834065048,7.1745,139.39,139.36,45.0]
[1723834065745,7.1745,139.39,139.35,45.0]
[1723834067056,17.9319,139.42,139.35,45.0]
[1723834067256,17.9319,139.42,139.31,35.8897]
[1723834067257,7.1756,139.36,139.31,7.1778]
[1723834067481,7.1756,139.36,139.32,7.1776]
[1723834067781,17.9345,139.4,139.32,7.1776]
[1723834067782,7.1752,139.37,139.32,7.1776]
[1723834068679,7.1752,139.37,139.33,45.0]
[1723834069158,7.1757,139.36,139.33,45.0]
[1723834069352,7.1757,139.36,139.32,45.0]
[1723834069553,17.9345,139.4,139.32,45.0]
[1723834069771,7.1763,139.35,139.31,45.0]
[1723834070178,7.1763,139.35,139.31,52.1781]
[1723834070778,7.1758,139.36,139.31,52.1781]
[1723834073058,7.1758,139.36,139.32,7.1776]
[1723834073273,7.1758,139.36,139.33,45.0]
[1723834074796,7.1752,139.37,139.34,1.43487632]
[1723834074964,7.1752,139.37,139.33,53.24164794]
[1723834075160,7.1747,139.38,139.33,52.1772]
[1723834076286,7.1752,139.37,139.33,52.1772]
[1723834078984,7.1742,139.39,139.34,7.1763]
[1723834079178,7.1746,139.38,139.35,45.80194317]
[1723834079379,7.1746,139.38,139.35,45.0]
[1723834080104,7.1751,139.37,139.35,45.0]
[1723834080342,7.1751,139.37,139.34,45.0]
[1723834080969,7.1751,139.37,139.32,25.121]
[1723834080970,7.1761,139.35,139.31,7.1778]
[1723834081513,7.1757,139.36,139.31,7.1778]
[1723834081809,7.1757,139.36,139.32,8.61249523]
[1723834082170,7.1757,139.36,139.33,45.0]
[1723834083432,7.1757,139.36,139.32,45.0]
[1723834083591,7.1762,139.35,139.32,45.0]
[1723834084479,7.1757,139.36,139.32,52.1775]
[1723834086098,7.1757,139.36,139.32,45.0]
[1723834086291,7.1763,139.35,139.32,45.0]
[1723834086486,21.9913,139.34,139.29,0.52332877]
[1723834086702,7.1778,139.32,139.28,7.1797]
[1723834086996,39.9281,139.38,139.3,7.1786]
[1723834087198,7.1765,139.35,139.31,0.52531104]
[1723834087401,7.1768,139.34,139.3,8.61354137]
[1723834087582,7.1768,139.34,139.3,7.1786]
[1723834088300,7.1768,139.34,139.31,45.0]
[1723834088996,7.1772,139.33,139.29,25.1269]
[1723834090214,7.177,139.34,139.3,7.1786]
[1723834090795,7.176,139.36,139.31,52.178]
[1723834091005,39.9281,139.38,139.31,52.178]
[1723834091212,7.1761,139.35,139.31,52.178]
[1723834091521,7.1757,139.36,139.32,7.1776]
[1723834091812,7.1757,139.36,139.33,45.0]
[1723834092591,7.1762,139.35,139.33,45.0]
[1723834092802,7.1768,139.34,139.31,17.9451]
[1723834093187,7.1763,139.35,139.31,17.9451]
[1723834093421,7.1763,139.35,139.31,25.1231]
[1723834093610,7.1758,139.36,139.32,45.0]
[1723834095005,7.1758,139.36,139.32,52.1776]
[1723834096489,22.0242,139.41,139.32,45.0]
[1723834096727,13.61620075,139.65,139.32,45.0]
[1723834096728,7.1727,139.42,139.37,7.1747]
[1723834096892,7.1727,139.42,139.38,46.43435262]
[1723834096893,7.1729,139.42,139.38,46.43435262]
[1723834097087,7.172,139.43,139.38,52.1744]
[1723834097295,6.4826,139.45,139.38,45.0]
[1723834098027,7.1731,139.41,139.38,45.0]
[1723834099726,7.1746,139.38,139.34,47.7304]
[1723834100123,15.4082,139.44,139.31,47.5034]
[1723834100328,7.1765,139.35,139.31,40.3253]
[1723834100536,45.0,139.43,139.31,15.8404]
[1723834100824,17.9369,139.38,139.32,0.87387856]
[1723834100996,17.9369,139.38,139.3,25.125]
[1723834100997,20.0,139.37,139.3,25.125]
[1723834101927,20.0,139.37,139.31,7.1781]
[1723834102525,20.0,139.37,139.32,45.0]
[1723834102926,7.1765,139.35,139.32,45.0]
[1723834103443,7.1765,139.35,139.31,45.0]
[1723834103625,20.0,139.37,139.31,45.0]
[1723834103793,7.1773,139.33,139.31,45.0]
[1723834103994,7.1768,139.34,139.31,45.0]
[1723834104220,7.1772,139.33,139.29,7.179]
[1723834104516,7.1773,139.33,139.27,40.921]
[1723834104689,7.1767,139.34,139.29,7.179]
[1723834105817,7.1767,139.34,139.3,45.0]
[1723834107822,7.1763,139.35,139.3,52.1786]
[1723834108121,7.1762,139.35,139.3,52.1786]
[1723834108491,20.0,139.37,139.3,52.1786]
[1723834108713,7.1767,139.34,139.3,52.1786]
[1723834109503,20.0,139.37,139.3,45.0]
[1723834109504,7.1775,139.33,139.3,45.0]
[1723834109932,7.1778,139.32,139.3,45.0]
[1723834110332,7.1778,139.32,139.29,17.9476]
[1723834110333,7.1782,139.31,139.27,30.1511]
[1723834110517,17.94,139.36,139.27,30.1511]
[1723834110841,7.1778,139.32,139.28,7.1796]
[1723834111631,7.1778,139.32,139.29,45.0]
[1723834112150,26.2005,139.35,139.26,25.1324]
[1723834112441,26.2005,139.35,139.24,6.39]
[1723834112442,26.2005,139.35,139.24,7.1817]
[1723834113645,7.1801,139.28,139.24,7.1817]
[1723834113952,17.9473,139.3,139.2,40.1564]
[1723834114119,7.1804,139.27,139.22,7.1824]
[1723834114714,20.0,139.29,139.22,7.1824]
[1723834114715,7.1808,139.26,139.22,7.1824]
[1723834115425,20.0,139.29,139.2,40.1564]
[1723834115760,7.1816,139.25,139.2,47.3399]
[1723834116441,7.182,139.24,139.2,40.9499]
[1723834116639,7.182,139.24,139.2,25.1423]
[1723834116950,7.1843,139.2,139.11,20.0]
[1723834117449,7.186,139.16,139.12,7.188]
[1723834117819,80.0751,139.27,139.12,7.188]
[1723834117820,7.1856,139.17,139.12,7.188]
[1723834118514,7.185,139.18,139.13,7.1873]
[1723834119420,7.1856,139.17,139.12,7.1879]
[1723834119617,7.1856,139.17,139.13,7.1874]
[1723834120349,7.1856,139.17,139.11,17.9705]
[1723834120551,7.1849,139.18,139.13,17.9682]
[1723834120752,7.1845,139.19,139.14,52.1869]
[1723834121049,7.1839,139.2,139.14,45.0]
[1723834121228,20.0,139.19,139.15,7.1863]
[1723834121648,20.0,139.19,139.13,17.9682]
[1723834121943,7.1853,139.18,139.13,25.1553]
[1723834122840,7.1853,139.18,139.14,7.1869]
[1723834123051,20.0,139.2,139.15,7.1863]
[1723834123052,7.1844,139.19,139.15,7.1863]
[1723834124048,20.0,139.2,139.16,7.1859]
[1723834124751,6.3288,139.25,139.19,7.1843]
[1723834124965,6.3288,139.29,139.22,7.1828]
[1723834125124,6.3288,139.29,139.22,41.62]
[1723834125325,6.3288,139.29,139.17,45.0]
[1723834125326,7.1787,139.3,139.26,7.1804]
[1723834125547,7.1787,139.3,139.25,25.1338]
[1723834125759,7.1787,139.3,139.24,41.62]
[1723834125760,7.1767,139.34,139.29,7.1791]
[1723834125932,7.1767,139.34,139.3,1.43532495]
[1723834126137,7.1773,139.33,139.28,7.1796]
[1723834126655,6.0942,139.36,139.29,8.61444798]
[1723834126833,6.0942,139.36,139.29,52.1791]
[1723834127365,20.0,139.35,139.29,52.1791]
[1723834127665,6.0942,139.36,139.29,52.1791]
[1723834128158,7.1772,139.33,139.29,52.1791]
[1723834128736,7.1767,139.34,139.3,7.1786]
[1723834129042,7.1767,139.34,139.29,45.0]
[1723834129043,7.1757,139.36,139.31,1.43329653]
[1723834129260,7.1747,139.38,139.33,7.1771]
[1723834129431,7.1747,139.38,139.34,1.43300198]
[1723834129858,7.1751,139.37,139.34,1.43300198]
[1723834130154,7.1751,139.37,139.33,7.1771]
[1723834130741,7.1766,139.34,139.29,52.1788]
[1723834130946,17.9347,139.4,139.31,7.1781]
[1723834130947,7.1756,139.37,139.31,7.1781]
[1723834131146,7.1756,139.37,139.32,45.0]
[1723834132159,17.9347,139.4,139.31,7.1781]
[1723834132160,7.1758,139.36,139.31,7.1781]
[1723834132335,7.1764,139.35,139.3,17.946]
[1723834132536,7.1758,139.36,139.32,7.1776]
[1723834132858,7.1758,139.36,139.31,7.178]
[1723834133060,17.9347,139.4,139.3,25.1246]
[1723834133239,7.1762,139.35,139.3,25.1246]
[1723834133625,7.1767,139.34,139.3,25.1246]
[1723834134043,65.0,139.39,139.29,7.1789]
[1723834134044,17.9371,139.38,139.29,7.1789]
[1723834134272,7.1767,139.34,139.29,7.1789]
[1723834134438,7.1772,139.33,139.29,7.1789]
[1723834136537,7.1763,139.35,139.31,7.178]
[1723834137377,20.0,139.38,139.31,7.178]
[1723834137378,20.0,139.38,139.32,1.43514949]
[1723834137669,7.1754,139.37,139.32,52.1775]
[1723834137970,7.1756,139.36,139.32,52.1775]
[1723834138438,17.9319,139.42,139.33,19.37716175]
[1723834138439,7.1744,139.39,139.33,19.37716175]
[1723834138641,7.1746,139.38,139.34,52.1765]
[1723834139869,7.1742,139.39,139.35,7.176]
[1723834140053,17.9319,139.42,139.33,25.1191]
[1723834140255,7.1747,139.38,139.33,25.1191]
[1723834140454,7.1747,139.38,139.34,45.0]
[1723834141445,7.1752,139.37,139.33,25.1189]
[1723834142162,20.0,139.41,139.32,7.1775]
[1723834142163,7.1757,139.36,139.32,7.1775]
[1723834144977,7.1749,139.38,139.34,7.1766]
[1723834145276,27.1751,139.37,139.33,7.1771]
[1723834146168,20.0,139.37,139.33,7.1771]
[1723834146374,20.0,139.37,139.34,19.3746966]
[1723834146548,20.0,139.38,139.35,45.0]
[1723834146850,20.0,139.38,139.36,1.43481256]
[1723834147047,20.0,139.39,139.31,17.9446]
[1723834147247,20.0,139.42,139.28,53.8476]
[1723834147656,7.1763,139.35,139.3,7.1785]
[1723834147973,7.1763,139.35,139.31,7.1781]
[1723834148279,7.1754,139.37,139.33,7.1768]
[1723834148460,20.0,139.36,139.33,7.1768]
[1723834148651,27.1757,139.36,139.32,25.1216]
[1723834149255,20.0,139.36,139.32,25.1216]
[1723834150381,27.1756,139.36,139.32,25.1216]
[1723834150580,7.1763,139.35,139.31,7.1781]
[1723834150790,7.1763,139.35,139.3,7.1784]
[1723834151476,7.1763,139.35,139.31,7.1781]
[1723834151987,27.1758,139.36,139.31,7.1781]
[1723834153885,27.1758,139.36,139.32,7.1777]
[1723834154989,20.0,139.36,139.28,25.1276]
[1723834155285,7.1773,139.33,139.28,25.1276]
[1723834155672,39.2691,139.37,139.29,7.1791]
[1723834155673,21.3307,139.37,139.29,7.1791]
[1723834155858,21.3307,139.37,139.3,17.9465]
[1723834156061,21.3307,139.37,139.31,7.1779]
[1723834156781,21.3307,139.37,139.3,25.1249]
[1723834157762,20.0,139.36,139.3,25.1249]
[1723834158090,7.1766,139.34,139.3,25.1249]
[1723834159789,7.1763,139.35,139.31,7.1782]
[1723834161092,7.1768,139.34,139.3,25.1252]
[1723834164984,20.0,139.36,139.32,17.9441]
[1723834165177,21.6812,139.41,139.34,7.1762]
[1723834165393,21.6812,139.41,139.35,0.3667267]
[1723834165575,3.54959494,139.44,139.35,7.54323516]
[1723834165772,29.17869156,139.45,139.35,7.54323516]
[1723834166083,7.1744,139.39,139.36,1.43461577]
[1723834166292,7.1744,139.39,139.35,45.0]
[1723834166796,7.1737,139.4,139.36,7.1756]
[1723834166988,7.1737,139.4,139.36,8.60998839]
[1723834167189,7.1737,139.4,139.36,1.43438839]
[1723834167673,7.1737,139.4,139.35,52.1761]
[1723834168270,7.1737,139.4,139.36,7.1756]
[1723834168466,7.1722,139.43,139.37,45.0]
[1723834168673,7.1726,139.42,139.38,7.1745]
[1723834168876,7.1726,139.42,139.39,45.0]
[1723834169301,7.1726,139.42,139.37,7.175]
[1723834169615,7.1726,139.42,139.38,45.0]
[1723834170074,7.1731,139.41,139.38,45.0]
[1723834170279,7.1731,139.41,139.37,7.175]
[1723834170794,7.1731,139.41,139.36,25.1137]
[1723834171012,7.1731,139.41,139.37,45.0]
[1723834171218,21.6812,139.45,139.36,25.1137]
[1723834171219,7.1737,139.4,139.36,25.1137]
[1723834171689,7.1732,139.41,139.37,45.0]
[1723834172105,7.1732,139.41,139.36,25.1137]
[1723834173925,7.1736,139.4,139.36,25.1137]
[1723834174423,7.1736,139.4,139.36,17.9382]
[1723834175031,7.1736,139.4,139.36,25.1137]
[1723834175197,7.1736,139.4,139.36,17.9382]
[1723834175402,64.51578088,139.45,139.33,33.0295]
[1723834175596,64.51578088,139.45,139.34,7.1765]
[1723834175597,7.1747,139.38,139.34,7.1765]
[1723834176418,7.1742,139.39,139.35,7.1761]
[1723834177123,7.1742,139.39,139.36,45.0]
[1723834177495,7.1742,139.39,139.33,33.0295]
[1723834177496,64.51649965,139.45,139.33,33.0295]
[1723834177692,7.1771,139.34,139.3,33.452]
[1723834178010,7.1771,139.34,139.3,40.6304]
[1723834178686,7.1763,139.35,139.3,40.6304]
[1723834178917,42.83529965,139.43,139.3,33.452]
[1723834178918,7.1757,139.36,139.3,33.452]
[1723834179235,6.3754,139.41,139.32,17.9439]
[1723834179418,7.1749,139.38,139.34,7.1766]
[1723834179591,7.1749,139.38,139.33,7.177]
[1723834179788,7.1751,139.37,139.34,45.0]
[1723834180193,7.1748,139.38,139.34,45.0]
[1723834180393,7.1748,139.38,139.34,52.1766]
[1723834180827,7.1751,139.37,139.34,45.0]
[1723834182336,7.1748,139.38,139.34,52.1766]
[1723834183190,7.1754,139.37,139.33,7.177]
[1723834184723,7.1757,139.36,139.32,17.9439]
[1723834184939,7.1757,139.36,139.33,45.0]
[1723834185623,7.1753,139.37,139.33,45.0]
[1723834186043,7.1753,139.37,139.33,52.1768]
[1723834186354,7.1748,139.38,139.33,52.1768]
[1723834187244,7.1748,139.38,139.34,7.1765]